bitfinex-derivatives/quotes_SOLF0:USTF0_20241222
["timestamp","ask_amount","ask_price","bid_price","bid_amount"]
[1734887200198,5.6583,182.73,182.68,2.7389]
[1734887200400,1.36973146,182.72,182.69,2.7387]
[1734887200699,1.69,182.77,182.66,20.71340993]
[1734887200903,4.28952038,182.76,182.66,20.71340993]
[1734887201101,4.10752038,182.75,182.7,2.7386]
[1734887201403,1.36952038,182.74,182.7,2.7386]
[1734887201600,1.36952038,182.73,182.7,2.7386]
[1734887201799,2.738,182.75,182.7,2.7386]
[1734887202100,1.36960648,182.74,182.66,20.71340993]
[1734887202306,1.36960648,182.73,182.66,20.71340993]
[1734887202600,2.7383,182.73,182.68,2.7389]
[1734887203797,2.7383,182.73,182.66,20.71340993]
[1734887204001,2.7383,182.73,182.69,2.7389]
[1734887207204,2.92,182.76,182.62,1.6173]
[1734887207496,1.36967419,182.75,182.62,1.6173]
[1734887207701,1.36967419,182.74,182.62,1.6173]
[1734887207903,1.36967419,182.73,182.64,20.71340993]
[1734887208102,1.36967419,182.72,182.64,20.71340993]
[1734887208302,2.92,182.76,182.64,20.71340993]
[1734887208499,1.3697083,182.75,182.65,2.9]
[1734887208705,1.3697083,182.74,182.67,20.71340993]
[1734887208899,4.59,182.77,182.68,1.713]
[1734887209103,1.36950116,182.76,182.68,1.713]
[1734887209298,1.36950116,182.75,182.68,1.713]
[1734887209502,1.36950116,182.74,182.68,1.713]
[1734887209702,4.59,182.77,182.67,20.71340993]
[1734887209903,2.7382,182.74,182.69,2.7388]
[1734887210403,4.59,182.77,182.67,20.71340993]
[1734887210609,4.59,182.77,182.64,20.71340993]
[1734887210610,1.36950307,182.76,182.64,20.71340993]
[1734887210808,1.36950307,182.75,182.63,1.6412]
[1734887211011,2.739,182.69,182.64,2.7395]
[1734887211506,1.36993495,182.68,182.62,90.93196716]
[1734887211706,2.9,182.71,182.62,93.67186716]
[1734887212012,1.36994505,182.7,182.62,93.67186716]
[1734887212206,1.36994505,182.69,182.62,93.67186716]
[1734887212406,1.36994505,182.68,182.62,93.67186716]
[1734887212708,1.36994505,182.67,182.62,93.67186716]
[1734887212907,2.7393,182.67,182.62,93.67186716]
[1734887213303,2.7395,182.65,182.62,90.93196716]
[1734887215210,2.9,182.69,182.62,90.93196716]
[1734887215514,2.7393,182.67,182.62,90.93196716]
[1734887216012,5.6389,182.69,182.62,90.93196716]
[1734887216213,2.9,182.69,182.64,20.71340993]
[1734887216614,5.6389,182.69,182.65,2.7394]
[1734887216816,2.9,182.69,182.64,20.71340993]
[1734887217014,2.9,182.69,182.61,2.36399786]
[1734887217316,2.7392,182.68,182.64,2.7395]
[1734887218315,2.9,182.69,182.61,2.36399786]
[1734887218621,2.7393,182.66,182.62,2.7398]
[1734887219917,2.9,182.69,182.59,1.6412]
[1734887220122,2.7396,182.64,182.6,2.7402]
[1734887220518,2.7395,182.65,182.61,2.7401]
[1734887221118,2.7394,182.66,182.62,2.7398]
[1734887221323,2.9,182.69,182.59,1.6412]
[1734887221514,1.37004573,182.68,182.59,1.6412]
[1734887221720,2.7396,182.65,182.61,2.7401]
[1734887222615,2.7392,182.67,182.63,2.7398]
[1734887222816,2.9,182.69,182.59,1.6412]
[1734887223015,1.36993612,182.68,182.61,20.71340993]
[1734887223214,2.9,182.69,182.61,20.71340993]
[1734887223417,2.9,182.72,182.61,20.71340993]
[1734887223616,1.36983779,182.71,182.62,2.9]
[1734887223823,1.36983779,182.7,182.62,2.9]
[1734887224017,2.7388,182.7,182.65,2.7393]
[1734887224521,2.7391,182.68,182.64,2.7396]
[1734887225120,2.9,182.72,182.62,2.9]
[1734887225317,2.7393,182.66,182.6,108.4932584]
[1734887225514,2.9,182.72,182.6,108.4932584]
[1734887225719,1.36997759,182.71,182.6,108.4932584]
[1734887225922,1.36997759,182.7,182.6,108.4932584]
[1734887226921,1.36997759,182.7,182.59,1.6412]
[1734887227223,1.6466,182.69,182.59,1.6412]
[1734887227421,2.7398,182.64,182.6,2.7402]
[1734887227824,2.9,182.65,182.59,1.6412]
[1734887228122,5.6396,182.65,182.61,2.74]
[1734887229118,2.9,182.65,182.6,2.7402]
[1734887229422,2.7397,182.64,182.6,2.7402]
[1734887229623,2.9,182.65,182.58,91.27354159]
[1734887229825,1.37009071,182.64,182.58,91.27354159]
[1734887230026,1.37009071,182.63,182.58,91.27354159]
[1734887230222,1.37032696,182.62,182.59,17.49947627]
[1734887230422,2.9,182.65,182.59,17.49947627]
[1734887230618,1.37035303,182.64,182.59,17.49947627]
[1734887230823,1.37035303,182.63,182.59,17.49947627]
[1734887231022,1.37035303,182.62,182.59,17.49947627]
[1734887231224,2.9,182.65,182.59,17.49947627]
[1734887231423,2.9,182.65,182.58,94.01404159]
[1734887231424,2.7401,182.62,182.58,94.01404159]
[1734887231626,2.9,182.65,182.58,91.27354159]
[1734887232227,5.6396,182.65,182.6,2.7402]
[1734887232629,1.37012297,182.64,182.6,2.7402]
[1734887232928,2.9,182.65,182.58,91.27354159]
[1734887233125,1.3701906,182.64,182.58,91.27354159]
[1734887233426,2.7404,182.59,182.58,91.27354159]
[1734887233827,2.9,182.65,182.58,91.27354159]
[1734887234028,2.7402,182.61,182.58,91.27354159]
[1734887234423,1.37043657,182.6,182.58,91.27354159]
[1734887234620,2.9,182.65,182.58,91.27354159]
[1734887234820,1.37042409,182.64,182.58,91.27354159]
[1734887235025,1.37042409,182.63,182.58,91.27354159]
[1734887235228,2.7404,182.59,182.58,91.27354159]
[1734887235528,7.01082409,182.59,182.58,91.27354159]
[1734887235727,4.27042409,182.59,182.58,91.27354159]
[1734887235928,2.9,182.63,182.58,91.27354159]
[1734887236227,1.37045769,182.62,182.58,91.27354159]
[1734887236426,1.37045769,182.61,182.58,91.27354159]
[1734887236627,2.9,182.63,182.58,91.27354159]
[1734887236932,4.11034118,182.62,182.58,94.01394159]
[1734887237128,1.37034118,182.61,182.54,23.61340993]
[1734887237323,2.9,182.66,182.57,20.71340993]
[1734887237521,1.37007918,182.65,182.62,2.7398]
[1734887237726,5.6394,182.66,182.62,2.7398]
[1734887238026,1.37005568,182.65,182.61,2.7401]
[1734887238232,1.37012147,182.65,182.61,2.7401]
[1734887238529,1.37012147,182.64,182.61,2.7401]
[1734887238722,2.7395,182.65,182.61,2.7401]
[1734887238922,1.3701182,182.64,182.62,2.7398]
[1734887239132,2.9,182.67,182.57,19.68633072]
[1734887239330,1.36998388,182.66,182.57,19.68633072]
[1734887239528,1.36998388,182.65,182.59,2.7403]
[1734887239731,2.7393,182.67,182.59,17.48441872]
[1734887240026,1.36999292,182.66,182.59,17.48441872]
[1734887240231,1.36999292,182.65,182.59,17.48441872]
[1734887240627,2.7395,182.66,182.62,2.7398]
[1734887240838,1.7043,182.74,182.63,20.71340993]
[1734887241030,1.36995365,182.73,182.63,20.71340993]
[1734887241229,1.36995365,182.72,182.68,2.7389]
[1734887241430,1.36995365,182.71,182.68,2.7389]
[1734887241633,1.36995365,182.7,182.66,20.71340993]
[1734887241833,2.9,182.79,182.69,20.71340993]
[1734887242033,1.36939546,182.78,182.69,20.71340993]
[1734887242232,2.9,182.79,182.69,20.71340993]
[1734887242233,1.36939546,182.77,182.69,20.71340993]
[1734887242531,1.36939546,182.76,182.69,20.71340993]
[1734887242733,1.36939546,182.75,182.69,20.71340993]
[1734887243032,2.9,182.79,182.69,20.71340993]
[1734887243236,1.36928737,182.78,182.69,20.71340993]
[1734887243423,1.36928737,182.77,182.72,2.7383]
[1734887243628,1.36928737,182.76,182.69,20.71340993]
[1734887243930,1.36928737,182.75,182.69,20.71340993]
[1734887244233,2.9,182.79,182.72,2.7383]
[1734887244428,1.36928595,182.78,182.69,22.37420993]
[1734887244627,1.36928595,182.77,182.69,22.37420993]
[1734887244828,1.36928595,182.76,182.69,39.98798517]
[1734887245030,1.36928595,182.75,182.69,39.98798517]
[1734887245230,2.9,182.79,182.69,39.98798517]
[1734887245427,1.36929342,182.78,182.72,2.7383]
[1734887245638,1.36929342,182.77,182.72,2.7383]
[1734887245932,1.36929342,182.76,182.7,2.9]
[1734887246127,2.9,182.79,182.7,2.9]
[1734887246326,1.36924967,182.78,182.7,2.9]
[1734887246536,1.36924967,182.77,182.7,2.9]
[1734887246731,1.36924967,182.77,182.75,2.7379]
[1734887246931,2.7371,182.81,182.75,2.7379]
[1734887247137,1.36926564,182.8,182.75,2.7379]
[1734887247332,1.36926564,182.79,182.75,2.7379]
[1734887247532,1.36926564,182.78,182.77,2.7377]
[1734887247729,4.4798,182.84,182.72,20.71340993]
[1734887247935,1.36897114,182.83,182.72,20.71340993]
[1734887248131,1.36897114,182.82,182.72,20.71340993]
[1734887248334,2.9,182.85,182.78,2.7374]
[1734887248335,1.36897114,182.81,182.78,2.7374]
[1734887248536,1.36898697,182.8,182.78,2.7374]
[1734887248736,2.7365,182.85,182.8,2.7371]
[1734887248931,1.36892847,182.84,182.78,20.71340993]
[1734887249235,2.9,182.86,182.78,20.71340993]
[1734887249236,1.36892847,182.83,182.78,20.71340993]
[1734887249433,2.7363,182.87,182.82,2.7369]
[1734887249631,1.36877288,182.86,182.82,2.7369]
[1734887249937,1.36877288,182.85,182.82,2.7369]
[1734887250132,1.36878761,182.84,182.82,2.7369]
[1734887250331,2.7363,182.87,182.82,2.7369]
[1734887250532,1.36878536,182.86,182.82,2.7369]
[1734887250733,1.36878536,182.85,182.82,2.7369]
[1734887250935,2.9,182.89,182.85,2.7364]
[1734887251134,1.36853228,182.88,182.81,20.71340993]
[1734887251436,2.9,182.89,182.81,20.71340993]
[1734887251639,2.9,182.89,182.84,2.7365]
[1734887252032,2.7359,182.9,182.84,2.7365]
[1734887252226,2.7359,182.9,182.85,2.7364]
[1734887253031,2.9,182.91,182.81,20.71340993]
[1734887253230,1.36837188,182.9,182.78,20.71340993]
[1734887253435,1.36838527,182.89,182.78,20.71340993]
[1734887253636,2.7362,182.88,182.8,2.7371]
[1734887253831,2.9,182.91,182.78,20.71340993]
[1734887254037,1.36858204,182.9,182.78,20.71340993]
[1734887254337,1.36858204,182.89,182.78,20.71340993]
[1734887254529,1.36858204,182.88,182.81,2.7371]
[1734887254732,2.9,182.91,182.81,2.7371]
[1734887254933,1.36861617,182.9,182.78,20.71340993]
[1734887255134,1.36861617,182.89,182.78,20.71340993]
[1734887255437,2.9,182.9,182.78,20.71340993]
[1734887255639,2.736,182.89,182.85,2.7364]
[1734887256039,2.9,182.9,182.83,2.7367]
[1734887256337,2.9,182.9,182.81,23.61340993]
[1734887256536,2.9,182.9,182.86,2.7362]
[1734887258040,4.645,182.95,182.84,20.71340993]
[1734887258238,2.9,182.95,182.85,1.6027]
[1734887258440,2.7353,182.93,182.88,2.736]
[1734887258639,2.9,182.95,182.85,1.6027]
[1734887259335,1.6748,183.0,182.92,20.71340993]
[1734887259535,2.9,182.99,182.92,2.38742918]
[1734887260841,3.4132,183.05,182.92,2.38742918]
[1734887261042,4.26778036,183.04,182.92,2.38742918]
[1734887261237,1.36778036,183.03,182.92,2.38742918]
[1734887261439,2.7344,182.99,182.93,2.7352]
[1734887262336,2.9,183.04,182.92,2.38742918]
[1734887262638,1.3677282,183.03,182.95,20.71340993]
[1734887262941,2.9,183.05,182.95,20.71340993]
[1734887263138,1.7423,183.07,182.98,20.71340993]
[1734887263339,1.36746028,183.06,182.98,20.71340993]
[1734887263538,2.7336,183.05,182.99,2.7344]
[1734887263841,4.6423,183.07,182.98,20.71340993]
[1734887264032,1.36735688,183.06,182.96,3.4236]
[1734887264237,1.36753514,183.05,182.95,20.71340993]
[1734887264639,1.36759905,183.04,182.94,2.9]
[1734887264842,2.7346,182.98,182.94,2.9]
[1734887265043,2.7346,182.98,182.93,2.7351]
[1734887265338,2.9,183.01,182.89,6.3236]
[1734887265542,4.69194093,183.0,182.89,6.3236]
[1734887265746,1.6871,183.0,182.89,6.3236]
[1734887266639,1.36786989,182.99,182.89,6.3236]
[1734887266843,1.6139,182.99,182.89,6.3236]
[1734887267037,1.6139,182.99,182.85,20.71340993]
[1734887267242,3.00513849,182.98,182.83,2.9]
[1734887267542,1.36813849,182.97,182.83,2.9]
[1734887267737,2.7357,182.91,182.86,2.7363]
[1734887267943,2.9,182.96,182.82,3.3064]
[1734887268143,4.26827847,182.95,182.82,3.3064]
[1734887268343,1.3682361,182.94,182.82,3.3064]
[1734887268540,2.7356,182.92,182.86,2.7362]
[1734887268947,2.9,182.95,182.86,2.7362]
[1734887269146,2.7356,182.91,182.86,2.7362]
[1734887269645,2.7358,182.9,182.85,2.7365]
[1734887271344,2.7361,182.88,182.82,6.0432]
[1734887271543,2.9,182.9,182.82,6.0432]
[1734887271845,2.9,182.9,182.82,1.6937]
[1734887272047,2.9,182.9,182.78,22.43510993]
[1734887272946,2.9,182.9,182.79,2.7373]
[1734887273345,2.9,182.9,182.8,2.7372]
[1734887273944,2.9,182.9,182.78,22.43510993]
[1734887274547,2.7362,182.87,182.82,2.7369]
[1734887275247,2.9,182.9,182.78,22.43510993]
[1734887275452,2.7365,182.86,182.78,22.43510993]
[1734887276547,2.9,182.9,182.78,22.43510993]
[1734887276749,2.7365,182.85,182.78,22.43510993]
[1734887277448,2.7364,182.86,182.78,22.43510993]
[1734887278454,2.7364,182.86,182.81,2.7371]
[1734887278655,2.9,182.9,182.78,22.43510993]
[1734887279747,2.9,182.9,182.78,4.10425159]
[1734887280455,1.36848417,182.89,182.78,1.7217]
[1734887280752,1.36848417,182.88,182.78,22.43510993]
[1734887280947,2.7362,182.87,182.78,22.43510993]
[1734887281352,2.7362,182.87,182.78,40.98275099]
[1734887281551,2.7362,182.87,182.82,2.7368]
[1734887281750,2.9,182.9,182.81,23.61340993]
[1734887281950,105.02693749,182.96,182.82,1.6682]
[1734887282152,1.36831483,182.95,182.84,20.71340993]
[1734887282350,4.10351483,182.94,182.85,1.7303]
[1734887282550,2.7352,182.94,182.85,1.7303]
[1734887282754,2.7352,182.94,182.89,2.7358]
[1734887283247,2.7353,182.93,182.88,2.736]
[1734887283656,2.9,182.95,182.86,20.15754106]
[1734887283856,1.36815565,182.94,182.86,18.54764106]
[1734887284157,1.36815565,182.93,182.87,18.54764106]
[1734887284563,1.36815565,182.92,182.87,18.54764106]
[1734887284748,4.9109,182.94,182.87,18.54764106]
[1734887284749,2.7362,182.88,182.87,18.54764106]
[1734887284952,1.36815565,182.88,182.82,2.7368]
[1734887285149,4.10445565,182.87,182.81,90.64926014]
[1734887285456,1.36815565,182.86,182.81,90.64926014]
[1734887285753,1.36815565,182.85,182.79,90.64926014]
[1734887285958,2.9,182.89,182.79,111.36267007]
[1734887286158,1.36839864,182.88,182.79,111.36267007]
[1734887286458,1.36839864,182.87,182.79,111.36267007]
[1734887286660,1.36839864,182.86,182.83,2.7367]
[1734887286956,2.7361,182.88,182.83,2.7367]
[1734887287159,2.7364,182.86,182.81,93.38626014]
[1734887287352,1.36848132,182.85,182.81,93.38626014]
[1734887287548,2.7364,182.86,182.81,93.38626014]
[1734887287750,1.36848906,182.85,182.81,93.38626014]
[1734887287956,1.36848906,182.84,182.81,90.64926014]
[1734887288153,1.36848906,182.83,182.81,90.64926014]
[1734887288357,2.9,182.89,182.81,90.64926014]
[1734887288559,1.36863437,182.88,182.79,90.64926014]
[1734887288858,1.36863437,182.87,182.79,90.64926014]
[1734887289053,1.36863437,182.86,182.79,90.64926014]
[1734887289249,1.36863437,182.85,182.79,90.64926014]
[1734887289454,4.10533437,182.84,182.8,2.7372]
[1734887289653,1.36863437,182.83,182.8,2.7372]
[1734887290256,1.36866826,182.82,182.8,2.7372]
[1734887290562,2.7367,182.84,182.8,2.7372]
[1734887290861,1.36866864,182.83,182.8,2.7372]
[1734887291163,1.36866864,182.82,182.8,2.7372]
[1734887291358,2.7367,182.84,182.8,2.7372]
[1734887291560,1.36866864,182.83,182.8,2.7372]
[1734887291760,2.7371,182.81,182.77,119.76043197]
[1734887291960,1.36866864,182.8,182.77,118.15153197]
[1734887292264,5.6367,182.84,182.79,2.7373]
[1734887292559,1.36872028,182.83,182.79,2.7373]
[1734887292762,1.36872028,182.82,182.79,2.7373]
[1734887292962,5.6367,182.84,182.79,2.7373]
[1734887293461,1.36865938,182.83,182.79,2.7373]
[1734887293661,2.9,182.88,182.78,21.4486316]
[1734887293861,1.36855922,182.87,182.78,18.5486316]
[1734887294055,1.36855922,182.86,182.78,18.5486316]
[1734887294252,1.36855922,182.85,182.77,90.64926014]
[1734887294459,2.7369,182.82,182.77,93.38676014]
[1734887294661,1.36855922,182.81,182.77,93.38676014]
[1734887295365,1.36855922,182.81,182.77,2.7375]
[1734887296267,2.7369,182.82,182.78,2.7375]
[1734887296461,1.36873482,182.81,182.78,2.7375]
[1734887296758,2.7372,182.81,182.77,2.7377]
[1734887297462,2.737,182.82,182.77,2.7377]
[1734887297664,2.9,182.84,182.76,90.64926014]
[1734887297859,2.7377,182.77,182.76,90.64926014]
[1734887298462,4.10679,182.77,182.76,90.64926014]
[1734887298662,2.7377,182.77,182.76,90.64926014]
[1734887298863,1.36912223,182.77,182.73,115.41403197]
[1734887299158,2.7378,182.76,182.73,115.41403197]
[1734887300363,5.6376,182.78,182.74,2.7381]
[1734887300569,2.9,182.78,182.71,79.27596639]
[1734887300867,2.7378,182.77,182.73,2.7382]
[1734887301163,2.9,182.78,182.73,2.7382]
[1734887301672,2.7377,182.77,182.73,2.7382]
[1734887302267,2.9,182.78,182.71,169.92522653]
[1734887302568,4.4957,182.83,182.71,169.92522653]
[1734887302774,1.3689804,182.82,182.71,169.92522653]
[1734887303066,2.7375,182.79,182.74,2.738]
[1734887305075,2.9,182.82,182.75,18.6134041]
[1734887305368,2.9,182.84,182.75,18.6134041]
[1734887305669,1.3689163,182.83,182.75,18.6134041]
[1734887305867,1.6563,182.87,182.75,18.6134041]
[1734887306060,1.6563,182.87,182.73,114.26267007]
[1734887306061,1.36875632,182.86,182.76,22.34350993]
[1734887306263,2.9,182.87,182.76,22.34350993]
[1734887306464,1.36865537,182.86,182.76,22.34350993]
[1734887306765,2.7366,182.85,182.8,2.7371]
[1734887307364,2.7367,182.84,182.8,2.7371]
[1734887307865,3.2629,182.9,182.78,93.54926014]
[1734887308067,2.7365,182.85,182.78,93.54926014]
[1734887308472,2.7365,182.85,182.8,2.7371]
[1734887309777,1.36859739,182.84,182.8,2.7371]
[1734887309968,2.7365,182.85,182.8,2.7371]
[1734887310169,1.36860471,182.84,182.8,2.7371]
[1734887310374,3.2629,182.9,182.8,2.7371]
[1734887310574,4.26860537,182.89,182.8,2.7371]
[1734887310777,1.36860537,182.88,182.8,2.7371]
[1734887310973,1.36860537,182.87,182.8,2.7371]
[1734887311176,2.7366,182.85,182.8,2.7371]
[1734887311378,1.36860537,182.84,182.8,2.7371]
[1734887311680,2.9,182.89,182.8,2.7371]
[1734887311881,2.7366,182.85,182.8,2.7371]
[1734887312081,1.36860276,182.84,182.8,2.7371]
[1734887312278,2.7366,182.85,182.8,2.7371]
[1734887312478,1.36859626,182.84,182.78,90.64926014]
[1734887312681,1.36859626,182.83,182.78,90.64926014]
[1734887312977,1.36859626,182.82,182.78,90.64926014]
[1734887313179,2.9,182.89,182.78,90.64926014]
[1734887313482,22.0821424,182.88,182.78,90.64926014]
[1734887313679,1.36873247,182.87,182.78,90.64926014]
[1734887313884,2.7374,182.79,182.78,90.64926014]
[1734887314082,4.10613247,182.79,182.78,90.64926014]
[1734887314281,4.10613247,182.79,182.76,90.64926014]
[1734887314482,2.7374,182.79,182.76,90.64926014]
[1734887314681,20.71340993,182.88,182.76,90.64926014]
[1734887314977,4.26883723,182.87,182.76,90.64926014]
[1734887315181,2.7365,182.85,182.81,2.737]
[1734887315381,1.36883723,182.84,182.79,20.71340993]
[1734887315581,6.1629,182.9,182.79,20.71340993]
[1734887315782,2.7361,182.88,182.79,20.71340993]
[1734887315982,2.7361,182.88,182.79,23.97270993]
[1734887315983,1.36858692,182.87,182.79,23.97270993]
[1734887316179,1.36858692,182.86,182.83,2.7367]
[1734887316385,1.36858692,182.85,182.83,2.7367]
[1734887316587,2.7361,182.88,182.83,2.7367]
[1734887316784,1.36841975,182.87,182.83,2.7367]
[1734887316987,1.36841975,182.86,182.83,2.7367]
[1734887317187,1.36841975,182.85,182.83,2.7367]
[1734887317388,2.7361,182.88,182.83,2.7367]
[1734887317691,1.36841986,182.87,182.83,2.7367]
[1734887317887,2.7361,182.88,182.83,2.7367]
[1734887318183,1.36841763,182.87,182.83,2.7367]
[1734887318791,1.36841763,182.86,182.83,2.7367]
[1734887322089,1.36841763,182.86,182.81,90.64926014]
[1734887322290,1.36841763,182.85,182.82,2.7369]
[1734887322895,2.7367,182.84,182.81,90.64926014]
[1734887323092,1.36841763,182.83,182.81,90.64926014]
[1734887324094,4.48,182.92,182.81,90.64926014]
[1734887324294,1.36844852,182.91,182.79,114.62197007]
[1734887324594,1.36844852,182.9,182.79,114.62197007]
[1734887324889,1.36844852,182.89,182.79,114.62197007]
[1734887325096,1.36844852,182.88,182.79,114.62197007]
[1734887325295,1.36844852,182.87,182.82,2.7369]
[1734887325492,1.36844852,182.86,182.82,2.7369]
[1734887325695,1.36844852,182.85,182.82,2.7369]
[1734887325893,4.48,182.92,182.8,133.99887923]
[1734887326098,1.36847446,182.91,182.8,136.73597923]
[1734887326396,2.7367,182.84,182.8,136.73597923]
[1734887326592,2.7367,182.84,182.81,90.64926014]
[1734887326797,1.36857633,182.83,182.81,90.64926014]
[1734887326996,2.7367,182.84,182.81,90.64926014]
[1734887327296,1.36861824,182.83,182.8,2.7371]
[1734887327497,1.36862467,182.82,182.8,2.7371]
[1734887327697,2.7367,182.84,182.8,2.7371]
[1734887327896,1.36863199,182.83,182.8,2.7371]
[1734887328098,1.36863199,182.82,182.78,92.26136014]
[1734887328299,2.7369,182.83,182.79,2.7373]
[1734887328598,1.36867125,182.82,182.79,2.7373]
[1734887328800,2.7369,182.83,182.79,2.7373]
[1734887329001,1.36867411,182.82,182.79,2.7373]
[1734887329201,2.7369,182.83,182.79,2.7373]
[1734887329499,1.3686327,182.82,182.79,2.7373]
[1734887329698,2.7369,182.83,182.79,2.7373]
[1734887330000,2.7369,182.83,182.8,18.57095751]
[1734887330001,1.36863268,182.82,182.8,18.57095751]
[1734887330201,2.7369,182.83,182.8,18.57095751]
[1734887330501,4.10562754,182.82,182.8,18.57095751]
[1734887330700,1.36862754,182.81,182.8,18.57095751]
[1734887331203,1.36862754,182.81,182.78,94.99886014]
[1734887331807,4.10572754,182.81,182.78,90.64926014]
[1734887331993,1.36862754,182.8,182.77,2.7376]
[1734887332198,1.36862754,182.8,182.76,90.64926014]
[1734887332398,1.36862754,182.79,182.76,90.64926014]
[1734887332602,1.36862754,182.78,182.76,90.64926014]
[1734887333304,1.36862754,182.78,182.75,2.7379]
[1734887333702,1.36862754,182.78,182.74,90.64926014]
[1734887334006,4.26862754,182.77,182.74,90.64926014]
[1734887334306,2.7383,182.73,182.72,90.64926014]
[1734887334508,4.10692754,182.73,182.72,90.64926014]
[1734887334706,2.7383,182.73,182.72,90.64926014]
[1734887335107,4.10754958,182.73,182.72,90.64926014]
[1734887335609,4.10754958,182.73,182.69,93.38806014]
[1734887335810,2.9,182.77,182.69,90.64926014]
[1734887336005,1.36929427,182.76,182.69,90.64926014]
[1734887336208,1.36929427,182.75,182.7,20.71340993]
[1734887336409,4.6075,182.81,182.71,2.9]
[1734887336606,1.36901946,182.8,182.71,2.9]
[1734887336812,2.7377,182.77,182.72,2.7384]
[1734887337110,4.6075,182.81,182.71,2.9]
[1734887337111,1.36901946,182.76,182.71,2.9]
[1734887337306,1.36915005,182.75,182.71,5.6386]
[1734887337505,2.738,182.76,182.71,5.6386]
[1734887337705,1.36915434,182.75,182.71,96.28786014]
[1734887337912,4.6075,182.81,182.71,93.38786014]
[1734887338105,1.36913928,182.8,182.71,93.38786014]
[1734887338305,2.7379,182.76,182.71,93.38786014]
[1734887338506,1.3691877,182.75,182.71,2.7386]
[1734887338706,4.6075,182.81,182.71,2.7386]
[1734887338910,2.738,182.76,182.71,2.7386]
[1734887339101,1.36916654,182.75,182.71,2.7386]
[1734887339307,4.6075,182.81,182.71,2.7386]
[1734887339507,1.36917254,182.8,182.71,2.7386]
[1734887339708,1.36917254,182.79,182.71,2.7386]
[1734887340010,1.36917254,182.78,182.71,2.7386]
[1734887340202,1.36917254,182.77,182.69,90.64926014]
[1734887340508,4.26917254,182.76,182.69,90.64926014]
[1734887340710,2.7382,182.74,182.69,90.64926014]
[1734887340912,2.9,182.75,182.69,90.64926014]
[1734887341410,2.9,182.79,182.69,90.64926014]
[1734887341612,1.36917267,182.78,182.7,23.61340993]
[1734887341812,1.36917267,182.77,182.71,1.6602]
[1734887342116,2.88,182.86,182.73,20.71340993]
[1734887342409,1.369074,182.85,182.74,1.7038]
[1734887342610,1.369074,182.84,182.75,2.88]
[1734887342813,1.369074,182.83,182.76,20.71340993]
[1734887343001,2.88,182.88,182.76,20.71340993]
[1734887343309,2.7365,182.85,182.8,2.7371]
[1734887343504,1.36860154,182.84,182.8,2.7371]
[1734887343703,2.7365,182.85,182.8,2.7371]
[1734887343905,1.36859098,182.84,182.8,2.7371]
[1734887344101,2.7365,182.85,182.8,2.7371]
[1734887344305,1.36855702,182.84,182.8,2.7371]
[1734887344513,2.88,182.88,182.78,18.51804062]
[1734887344706,1.36856636,182.87,182.78,18.51804062]
[1734887344912,1.36856636,182.86,182.78,18.51804062]
[1734887345110,1.36856636,182.85,182.78,18.51804062]
[1734887345310,1.36856636,182.84,182.76,111.36267007]
[1734887345505,2.7371,182.82,182.77,2.7375]
[1734887345815,1.36870914,182.81,182.76,90.64926014]
[1734887346012,2.88,182.82,182.76,90.64926014]
[1734887346214,1.36887459,182.81,182.76,90.64926014]
[1734887346414,2.88,182.82,182.74,154.37882018]
[1734887346415,2.88,182.82,182.75,90.64926014]
[1734887346616,1.3687561,182.81,182.75,90.64926014]
[1734887346817,2.88,182.86,182.75,90.64926014]
[1734887347017,2.7369,182.82,182.77,2.7376]
[1734887347213,1.36874907,182.81,182.77,2.7376]
[1734887347413,2.7369,182.82,182.77,2.7376]
[1734887347613,1.36874907,182.81,182.77,2.7376]
[1734887347916,2.7369,182.82,182.77,2.7376]
[1734887348115,1.36877149,182.81,182.77,2.7376]
[1734887348315,2.7369,182.82,182.78,2.7375]
[1734887348511,1.36875278,182.81,182.78,2.7375]
[1734887348717,2.7369,182.82,182.75,90.64926014]
[1734887349018,1.36876436,182.81,182.75,90.64926014]
[1734887349208,2.7369,182.82,182.75,90.64926014]
[1734887349613,1.368751,182.81,182.77,2.7376]
[1734887349918,1.36888123,182.8,182.76,18.50425615]